Cogmind - Beta 16 @@@ ROGUE MODE // 2026.01.03 @ 17:53:20 Player: leto Result: Destroyed by Y-45 Defender with Beam Rifle Performance ------------- Evolutions (2) 1000 Regions Visited (5) 1000 Robots Destroyed (72) 360 Value Destroyed (1702) 1702 Prototype IDs (4) 80 Alien Tech Used (0) 0 Bonus (290) 290 TOTAL SCORE: 4432 Bonus ------- Aligned with FarCom 300 Friendly Fire -10 Cogmind --------- Core Integrity 0/550 Matter 6/300 Energy 83/100 System Corruption 0% Temperature Cool (9) Movement Core (50) Location -8/Materials Parts ------- > --- POWER (1) -------- (None) > --- PROPULSION (4) --- (None) > --- UTILITY (4) ------ (None) > --- WEAPON (2) ------- (None) > --- INVENTORY (5) ---- Nuclear Core Improved Flight Unit Propulsion Shielding Hacking Suite Scythe Peak State ------------ > --- POWER ------------ Deuterium Engine > --- PROPULSION ------- Light Treads Light Treads Light Treads Compact Wheel > --- UTILITY ---------- Huge Storage Unit Heavy Armor Plating Reactive Plating > --- WEAPON ----------- High-powered Shotgun High-powered Shotgun > --- INVENTORY -------- Improved Ion Engine Deuterium Engine Nuclear Core Nuclear Core Fission Core Compact Wheel Flight Unit Flight Unit Improved Flight Unit Improved Flight Unit Improved Flight Unit Improved Flight Unit Improved VTOL Module Propulsion Shielding Propulsion Shielding Propulsion Shielding Hacking Suite Hacking Suite System Shield Minigun Assault Cannon Grenade Launcher Mini Grenade Launcher Improved Datajack Scythe [Rating: 29] Favorites ----------- Power Ion Engine Engine Ion Engine Power Core Nuclear Core Propulsion Light Treads Treads Light Treads Wheel Compact Wheel Flight Unit Improved VTOL Module Utility Huge Storage Unit Device Cloak of Protection Storage Huge Storage Unit Processor Armor Integrity Analyzer Protection Reactive Plating Weapon Particle Gun Energy Gun Particle Gun Ballistic Gun Assault Rifle Launcher Grenade Launcher Build | -11 -10 -10 -10 -9 -8 ------- Run | Yrd Mat Min Exi Min Mat Slots Evolved 4 | . . . . . 4 Power . | . . . . . . Propulsion 2 | . . . . . 2 Utility 2 | . . . . . 2 Weapon . | . . . . . . Parts Attached 46 | 7 5 3 1 4 26 Power 9 | 1 . 2 . 1 5 Engine 6 | 1 . 2 . 1 2 Core 3 | . . . . . 3 Reactor . | . . . . . . Propulsion 14 | 2 . 1 . . 11 Treads 11 | 2 . 1 . . 8 Leg . | . . . . . . Wheel 2 | . . . . . 2 Hover . | . . . . . . Flight 1 | . . . . . 1 Utility 11 | 2 2 . 1 . 6 Device 3 | . . . 1 . 2 Storage 4 | 2 2 . . . . Processor 2 | . . . . . 2 Hackware . | . . . . . . Protection 2 | . . . . . 2 Artifact . | . . . . . . Weapon 12 | 2 3 . . 3 4 Energy Gun 4 | 1 1 . . 2 . Energy Cannon . | . . . . . . Ballistic Gun 6 | 1 1 . . . 4 Ballistic Cannon . | . . . . . . Launcher 2 | . 1 . . 1 . Special Weapon . | . . . . . . Impact Weapon . | . . . . . . Slashing Weapon . | . . . . . . Piercing Weapon . | . . . . . . Special Melee Weapon . | . . . . . . Unidentified Prototypes 4 | . . . 1 . 3 Parts Lost 21 | . 1 1 . . 19 Power 2 | . . . . . 2 Propulsion 11 | . . 1 . . 10 Utility 3 | . . . . . 3 Weapon 5 | . 1 . . . 4 Highest Loss Streak 8 | . 1 1 . . 8 To Critical Strikes . | . . . . . . Average Backups 18 | . 9 22 23 21 22 Power 2 | . 1 2 1 1 3 Propulsion 7 | . 3 9 10 10 8 Utility 3 | . 2 2 4 4 5 Weapon 5 | . 2 7 8 5 4 Tool/Special . | . . . . . . Unused Backups 33 | . 1 . . 4 28 Power 5 | . . . . 1 4 Propulsion 11 | . . . . . 11 Utility 6 | . . . . . 6 Weapon 10 | . 1 . . 3 6 Tool/Special 1 | . . . . . 1 Average Slot Usage (%) 94 | . 99 99 99 100 83 Engine 11 | . 14 14 14 14 6 Treads 25 | . 27 27 28 28 21 Wheel 2 | . . . . . 9 Device 3 | . . . 7 14 6 Storage 20 | . 28 28 20 14 9 Processor 2 | . . . . . 7 Protection 1 | . . . . . 6 Energy Gun 11 | . 13 14 14 19 5 Ballistic Gun 12 | . 13 14 14 8 9 Peak Build Rating 29 | 7 11 12 19 21 29 Average Rating 15 | 4 8 11 15 19 25 On Entrance 11 | . 7 10 12 19 21 Avg Prop Armor Cover (%) 13 | . . . . . 13 Naked Turns 4 | . . . . . 4 Heaviest Build 120 | 18 110 112 112 100 120 Greatest Support 83 | 40 40 40 40 40 83 Greatest Overweight (x) 35 | . 35 5 2 2 29 Average Overweight (x) 2 | . 1 2 2 2 3 Largest Inventory Capacity 25 | 8 25 25 25 25 25 Average Capacity 24 | 6 22 25 25 25 24 Most Carried 25 | 2 19 25 25 25 25 Average Carried 19 | . 9 22 23 24 24 Final Capacity 25 | 8 25 25 25 25 5 Final Carried 25 | 1 17 25 23 25 5 Class Distribution -------------------- 89% | Mutant 10% | Scavenger-Mutant Dominant Class ---------------- Mutant | -10/Materials Mutant | -10/Mines Mutant | -10/Exiles Mutant | -9/Mines Mutant | -8/Materials Resources | -11 -10 -10 -10 -9 -8 ----------- Run | Yrd Mat Min Exi Min Mat Matter Collected 1355 | 244 148 94 . 128 741 Remotely . | . . . . . . Salvage Created 2461 | 89 722 144 . 67 1439 Parts 133 | 3 43 9 . 3 75 Haulers Intercepted 7 | . 2 . . . 5 Recyclers Shooed 2 | . 2 . . . . Parts Field Recycled . | . . . . . . Retrieved Matter . | . . . . . . Parts Self-Destructed . | . . . . . . Prevented . | . . . . . . Parts Restored . | . . . . . . Kills | -11 -10 -10 -10 -9 -8 ------- Run | Yrd Mat Min Exi Min Mat Combat Hostiles Destroyed 44 | . 8 4 . 7 25 Guns 32 | . 6 4 . 3 19 AOE 12 | . 2 . . 4 6 Classes Destroyed 14 | 1 8 1 . 1 3 Worker 10 | . 4 1 . . 5 Builder 3 | . 1 . . . 2 Tunneler 2 | . 1 . . 1 . Hauler 7 | . 2 . . . 5 Recycler 5 | 1 3 . . . 1 Operator 2 | . 1 . . . 1 Watcher 6 | . 2 . . . 4 Swarmer 8 | . 3 2 . . 3 Cutter 1 | . . . . . 1 Grunt 18 | . 5 . . . 13 Sentry 5 | . . 2 . . 3 Specialist 4 | . . . . . 4 Hunter 1 | . . . . . 1 Assembled 7 | . . . . 7 . Best Kill Streak 8 | 1 8 3 . 5 6 Combat Bots Only 6 | . 6 2 . 5 3 Max Kills in Single Turn 4 | 1 2 1 . 4 2 Gunslinging 1 | . 1 . . . . Exploded 4 | . 1 . . 4 1 Melee . | . . . . . . Uniques/NPCs Destroyed . | . . . . . . Combat | -11 -10 -10 -10 -9 -8 -------- Run | Yrd Mat Min Exi Min Mat Hostile Shots Fired 347 | . 44 20 14 19 250 Missed 110 | . 12 6 7 5 80 Hits 237 | . 32 14 7 14 170 Melee 11 | . . . . 10 1 Projectile 226 | . 32 14 7 4 169 AOE 1 | . . . . . 1 Critical Strikes 10 | . 1 1 . 1 7 Damage Taken 3978 | . 467 173 104 381 2853 Core 690 | . 65 33 . 33 559 Absorbed by Shields . | . . . . . . Ignored by Resistances 26 | . . . . . 26 Core Remaining (%) 73 | 100 . . . 47 . Volleys Fired 226 | 3 64 9 . 12 138 Largest 2 | 2 2 2 . 2 2 Hottest 85 | 60 85 85 . 85 80 Shots Fired 411 | 6 120 18 . 24 243 Gun 399 | 6 118 18 . 23 234 Cannon . | . . . . . . Launcher 12 | . 2 . . 1 9 Special . | . . . . . . Kinetic 267 | 3 64 9 . 10 181 Thermal 54 | . 36 9 . 9 . Explosive 12 | . 2 . . 1 9 Electromagnetic 78 | 3 18 . . 4 53 Robot Hit Streak 16 | 2 8 13 . 16 8 Robot Miss Streak 5 | 3 4 1 . 3 5 Penetration Max . | . . . . . . Secondary Targets 3 | . 1 1 . 1 . Max Gunslinging Chain 1 | . 1 1 . 1 . Shots Hit Robots 277 | 2 68 14 . 14 179 Core Hits 138 | 1 32 7 . 9 89 Critical Kills 3 | . 1 1 . . 1 Critical Parts Destroyed 1 | . . . . . 1 Critical Strikes 7 | . 1 1 . 2 3 Burn 2 | . . . . 2 . Destroy 4 | . 1 1 . . 2 Corrupt 1 | . . . . . 1 Melee Attacks . | . . . . . . Impact . | . . . . . . Slashing . | . . . . . . Piercing . | . . . . . . Sneak Attacks . | . . . . . . Combat Hostiles . | . . . . . . Follow-up Attacks . | . . . . . . Damage Inflicted 5386 | 25 933 214 . 346 3868 Guns 4216 | 25 758 198 . 176 3059 Cannons . | . . . . . . Explosions 1052 | . 115 . . 167 770 Melee . | . . . . . . Ramming 118 | . 60 16 . 3 39 Kinetic 3051 | 10 287 56 . 88 2610 Thermal 799 | . 312 142 . 64 281 Explosive 771 | . 115 . . 167 489 Electromagnetic 647 | 15 159 . . 24 449 Impact . | . . . . . . Slashing . | . . . . . . Piercing . | . . . . . . Highest Corruption 2 | . . . 2 2 . Average Corruption 1 | . . . 1 2 . Corruption Purged . | . . . . . . Corruption Blocked . | . . . . . . Effects 14 | . . . 2 12 . Message Errors 4 | . . . 1 3 . Matter Fused 3 | . . . 1 2 . Heat Flow Errors 3 | . . . . 3 . Data Loss (minor) 2 | . . . . 2 . Misfires 2 | . . . . 2 . Overload Shots . | . . . . . . Overflow Damage 61 | . . . . . 61 Projectiles . | . . . . . . Explosions 61 | . . . . . 61 Melee . | . . . . . . Knockbacks 2 | . . 1 . . 1 Impact 2 | . . 1 . . 1 Kinetic . | . . . . . . Secondary . | . . . . . . Self-Inflicted Damage 290 | . . . . . 290 Shots 10 | . . . . . 10 Rammed 10 | . 2 2 . 1 5 Targets Rammed 12 | . 4 2 . 1 5 Kicked . | . . . . . . Crushed 2 | . 2 . . . . Highest Temperature 232 | 20 184 147 . 232 166 Average Temperature 51 | 15 50 65 . 91 38 Received Heat Transfer 1365 | . 204 63 . . 1098 Effects 1 | . . . . 1 . Interference 1 | . . . . 1 . Siege Activations . | . . . . . . Martial Activations . | . . . . . . Shielding Activations . | . . . . . . Robots Disrupted . | . . . . . . Combat Hostiles . | . . . . . . Robots Corrupted 2 | . 1 . . . 1 Combat Hostiles . | . . . . . . Parts Fried 4 | . 2 . . . 2 Impact Corruptions . | . . . . . . Robots Melted . | . . . . . . Combat Hostiles . | . . . . . . Parts Melted . | . . . . . . Heat Transferred 1906 | . 777 333 . 296 500 Parts Sabotaged . | . . . . . . Parts Stolen . | . . . . . . Parts Stripped . | . . . . . . Power Chain Reactions 4 | . . . . . 4 Alert | -11 -10 -10 -10 -9 -8 ------- Run | Yrd Mat Min Exi Min Mat Maximum Alert Level 1 | . . . . . 1 Low Security (%) 98 | 100 100 100 . 100 94 Level 1 1 | . . . . . 5 Level 2 . | . . . . . . Level 3 . | . . . . . . Level 4 . | . . . . . . Level 5 . | . . . . . . High Security . | . . . . . . Max Security . | . . . . . . Peak Influence 265 | 5 182 55 . 11 265 Initial . | . . . . . . Average 17 | . 4 3 . . 45 Influence Increases 1346 | 5 374 112 . 16 839 Destroy 0b10 Robot/C 740 | . 160 80 . . 500 Destroy 0b10 Robot/NC 175 | 5 70 5 . 5 90 Destroy Leader 186 | . 48 10 . . 128 Trap Triggered on 0b10 10 | . . . . . 10 Successful Hack 42 | . 26 . . . 16 Disable Machine 45 | . . . . . 45 Destroy Structure 58 | . 10 2 . 11 35 Partial Spotted 15 | . . . . . 15 Lose Combat Pursuer 75 | . 60 15 . . . Influence Decreases 1113 | 5 374 112 . 16 606 Time Decay 786 | 5 221 112 . 16 432 Lost Part 174 | . . . . . 174 Purge Threat 153 | . 153 . . . . Squads Dispatched 12 | . 1 . . 1 10 Investigation 4 | . . . . . 4 Extermination . | . . . . . . Reinforcement 8 | . 1 . . 1 6 Assault . | . . . . . . Garrison . | . . . . . . Intercept . | . . . . . . Searches Triggered . | . . . . . . Construction Impeded 2 | . . . . 1 1 Haulers Reinforced . | . . . . . . Active Scanning Responses . | . . . . . . Cargo Convoy Interrupts . | . . . . . . Stealth | -11 -10 -10 -10 -9 -8 --------- Run | Yrd Mat Min Exi Min Mat Distress Signals 2 | . . . . . 2 Communications Jammed . | . . . . . . Distress Signals . | . . . . . . Times Spotted 94 | . 25 5 1 7 56 Peak Tracking Total 5 | . 4 3 1 5 5 Tactical Retreats 4 | . 3 1 . . . Traps | -11 -10 -10 -10 -9 -8 ------- Run | Yrd Mat Min Exi Min Mat Traps Triggered 3 | . 3 . . . . Indirectly . | . . . . . . Trap Hack Attempts . | . . . . . . Triggered . | . . . . . . Disarmed . | . . . . . . Reprogrammed . | . . . . . . Reused 1 | . . . . . 1 Traps Extracted . | . . . . . . Installed 1 | . . . . . 1 Triggered 1 | . . . . . 1 Most Traps Carried 5 | . . . . 5 3 Machines | -11 -10 -10 -10 -9 -8 ---------- Run | Yrd Mat Min Exi Min Mat Machines Disabled 3 | . . . . . 3 Max in Single Turn 1 | . . . . . 1 Machines Repaired . | . . . . . . Machines Dismantled . | . . . . . . Machines Sabotaged . | . . . . . . Overloaded Fab Kills . | . . . . . . Hacking | -11 -10 -10 -10 -9 -8 --------- Run | Yrd Mat Min Exi Min Mat Machines Accessed 16 | . 7 1 . . 8 Terminals 14 | . 7 1 . . 6 Fabricators . | . . . . . . Repair Stations . | . . . . . . Recycling Units . | . . . . . . Scanalyzers 2 | . . . . . 2 Garrison Access . | . . . . . . Total Hacks 39 | . 16 1 . . 22 Successful 27 | . 11 1 . . 15 Failed 12 | . 5 . . . 7 Catastrophic 4 | . 1 . . . 3 Database Lockouts . | . . . . . . Manual 32 | . 16 1 2 . 13 Terminals 31 | . 16 1 . . 14 Fabricators . | . . . . . . Repair Stations . | . . . . . . Recycling Units . | . . . . . . Scanalyzers 8 | . . . . . 8 Garrison Access . | . . . . . . Terminal Hacks 6 | . 3 . . . 3 Unreport Threat 5 | . 3 . . . 2 Recall Investigation 1 | . . . . . 1 Fabricator Hacks . | . . . . . . Repair Station Hacks . | . . . . . . Recycling Unit Hacks . | . . . . . . Scanalyzer 8 | . . . . . 8 Insert Component 4 | . . . . . 4 Analyze 4 | . . . . . 4 Garrison Access Hacks . | . . . . . . Unauthorized Hacks 13 | . 8 1 . . 4 Terminals 13 | . 8 1 . . 4 Botnet 11 | . 7 1 . . 3 Operators 2 | . 1 . . . 1 Fabricators . | . . . . . . Repair Stations . | . . . . . . Recycling Units . | . . . . . . Scanalyzers . | . . . . . . Garrison Access . | . . . . . . Data Cores Recovered . | . . . . . . Used . | . . . . . . Hacking Detections 9 | . 2 . . . 7 Full Trace Events 6 | . 1 . . . 5 Feedback Events . | . . . . . . Feedback Blocked . | . . . . . . Robot Schematics Acquired . | . . . . . . Robots Built . | . . . . . . Authchips . | . . . . . . Time . | . . . . . . Total Robot Build Rating . | . . . . . . Part Schematics Acquired 3 | . . . . . 3 Parts Built . | . . . . . . Authchips . | . . . . . . Time . | . . . . . . Total Part Build Rating . | . . . . . . Part Studies Acquired . | . . . . . . Parts Repaired . | . . . . . . Time . | . . . . . . Parts Recycled . | . . . . . . Recycled Matter . | . . . . . . Retrieved Matter . | . . . . . . Retrieved Components . | . . . . . . Parts Scanalyzed 3 | . . . . . 3 Part Schematics Acquired 3 | . . . . . 3 Parts Damaged . | . . . . . . Bothacking | -11 -10 -10 -10 -9 -8 ------------ Run | Yrd Mat Min Exi Min Mat Used RIF Installer . | . . . . . . Robots Hacked . | . . . . . . Non-combat . | . . . . . . Combat . | . . . . . . Robot Hacks Applied . | . . . . . . Relay Couplers Released . | . . . . . . Fabnet Peak Effective % . | . . . . . . Robots Rewired . | . . . . . . Allies Hacked . | . . . . . . Hacks Repelled . | . . . . . . Allies | -11 -10 -10 -10 -9 -8 -------- Run | Yrd Mat Min Exi Min Mat Total Allies . | . . . . . . Largest Group . | . . . . . . Highest-Rated Group . | . . . . . . Highest-Rated Ally . | . . . . . . Total Orders . | . . . . . . Ally Attacks . | . . . . . . Total Damage . | . . . . . . Kills . | . . . . . . Allies Corrupted . | . . . . . . Allies Melted . | . . . . . . Intel | -11 -10 -10 -10 -9 -8 ------- Run | Yrd Mat Min Exi Min Mat Active Infowar (turns) 645 | . . . 10 . 635 Cloaking 10 | . . . 10 . . ECM 635 | . . . . . 635 Robot Analysis Total . | . . . . . . Derelict Logs Recovered 1 | . . 1 . . . Drone Launches . | . . . . . . Drone Recoveries . | . . . . . . Exploration | -11 -10 -10 -10 -9 -8 ------------- Run | Yrd Mat Min Exi Min Mat Turns Passed 9233 | 74 2858 2162 810 620 2709 Spaces Moved 2758 | 35 894 640 253 175 761 Core 10 | 1 1 . . . 8 Treads 2279 | 34 893 640 253 175 284 Legs . | . . . . . . Wheels 469 | . . . . . 469 Hover . | . . . . . . Flight . | . . . . . . Fastest Speed 50 | 50 160 320 320 320 50 Average Speed 288 | 156 294 321 320 320 243 Slowest Speed 1800 | 160 1800 560 320 320 1500 Overloaded Moves . | . . . . . . Propulsion Burnouts . | . . . . . . Robots Hopped . | . . . . . . Potential Cave-ins . | . . . . . . Cave-ins Triggered . | . . . . . . Exploration Rate (%) 60 | 3 100 99 61 51 51 Regions Visited 5 Branch Regions 3 Pre-discovered Areas 1 | . . 1 . . . Known Exits Taken . | . . . . . . Unknown Exits Taken 5 | 1 1 1 1 1 . Scrap Searched 3 | . . 2 . 1 . Spaces Dug . | . . . . . . Terrain Destroyed 49 | . 9 . . 14 26 Melee . | . . . . . . Projectile . | . . . . . . AOE 49 | . 9 . . 14 26 Terrain Rammed . | . . . . . . Walls Destroyed . | . . . . . . Machines Disabled . | . . . . . . Actions | -11 -10 -10 -10 -9 -8 --------- Run | Yrd Mat Min Exi Min Mat Total 3620 | 46 1007 725 257 217 1368 Wait 477 | . 16 66 . 8 387 Move 2753 | 34 893 639 252 174 761 Hop . | . . . . . . Pick Up 50 | 2 17 6 1 8 16 Fast Attach 22 | 6 4 1 . . 11 Attach 15 | 1 1 . 1 2 10 Detach 3 | . 1 . . . 2 Swap 22 | . 3 2 . 4 13 Drop 39 | . 4 . 3 8 24 Fire 226 | 3 64 9 . 12 138 Melee . | . . . . . . Ram 3 | . . . . . 3 Kick . | . . . . . . Crush 9 | . 4 2 . 1 2 Escape Stasis . | . . . . . . Rewire . | . . . . . . Trap 1 | . . . . . 1 Miscellaneous . | . . . . . . Route ------- -11/Scrapyard -10/Materials (discovered 5 exits: [*Mat x3] / *Min / [*Sub]) -10/Mines (discovered 4 exits: [*Mat x2] / *Exi / [*Sub]) -10/Exiles -9/Mines -8/Materials (discovered 1 exit: [*Fac]) History --------- Turn | Location | Event 32 | -11/Scrapyard | Discovered new exit (range 16) 75 | -11/Scrapyard | Entered Materials 195 | -10/Materials | Discovered new exit (range 12) 331 | -10/Materials | Build established: Mutant 405 | -10/Materials | Discovered new exit (range 13) 1503 | -10/Materials | Discovered new exit (range 10) 2182 | -10/Materials | Discovered new exit (range 4) 2531 | -10/Materials | Discovered new exit (range 3) 2933 | -10/Materials | Entered Mines 2944 | -10/Mines | Met a Derelict bent on vengeance 3420 | -10/Mines | Learned location of Zion (-7) 3830 | -10/Mines | Discovered new exit (range 14) 3859 | -10/Mines | Deemed a non-threat by the Exiles lab entrance 3862 | -10/Mines | Discovered new exit (range 5) 4324 | -10/Mines | Discovered new exit (range 14) 4884 | -10/Mines | Discovered new exit (range 5) 5095 | -10/Mines | Entered Exiles 5175 | -10/Exiles | Met 8R-AWN 5227 | -10/Exiles | Met EX-HEX 5316 | -10/Exiles | Met EX-BIN 5367 | -10/Exiles | Aligned with FarCom system 5371 | -10/Exiles | Given EX-Vault access code 5447 | -10/Exiles | Opened EX-Vault 5458 | -10/Exiles | Found Prototype Device 5495 | -10/Exiles | Identified Cloak of Protection 5553 | -10/Exiles | Warned to stay clear of 0b10 Research branches 5580 | -10/Exiles | Exiles lab attacked by MAIN.C 5880 | -10/Exiles | Discovered new exit (range 10) 5905 | -10/Exiles | Left Exiles lab with Cloak of Protection 5905 | -10/Exiles | Entered Mines 6052 | -9/Mines | Found a hidden stash of uninstalled traps 6201 | -9/Mines | Assembled infested the area 6206 | -9/Mines | Assisted by a Guerilla fighting off Assembled 6227 | -9/Mines | Core integrity fell below 50% 6349 | -9/Mines | Discovered new exit (range 10) 6525 | -9/Mines | Entered Materials 6525 | -8/Materials | Evolved 4 slots: Propulsion x2, Utility x2 7174 | -8/Materials | Build established: Scavenger-Mutant 7821 | -8/Materials | Lost 4 parts (1p2n1u) 7923 | -8/Materials | Discovered new exit (range 14) 8045 | -8/Materials | Build established: Mutant 8479 | -8/Materials | Core integrity fell below 50% 9201 | -8/Materials | Core integrity fell below 20% 9230 | -8/Materials | Released all parts (2) 9234 | -8/Materials | Destroyed by Y-45 Defender with Beam Rifle Last Messages --------------- K-01 Serf collects debris. Lgt. Treads destroyed. Destroyed Lgt. Treads. Grenade Launcher destroyed. Destroyed Grenade Launcher. Targeting Computer severed. U-05 Engineer lays Concrete. Identified Imp. Flight Unit. Faulty integration triggers meltdown. Imp. VTOL Module damaged (-13). Huge Storage Unit damaged (-259). K-01 Serf collects debris. R-06 Scavenger collects Adv. Visual Processing Unit. U-05 Engineer lays Concrete. Released Huge Storage Unit. Released Imp. VTOL Module. [Achievement: Live, Flee, And Rebuild] Knocked back. U-05 Engineer lays Concrete. Map ----- +----------------------------------------------------+ | ?????????????????????????????????????????????????? | | ?????????????????????????????????????????????????? | | ?????????????????????????????????????????????????? | | ?????????????????????????????????????????????????? | | ?????????????????????????????????????????????????? | | ?????????????????????????????????????????????????? | | ?????????????????????????????????????????????????? | | ?????????????????????????????????????????????????? | | ?????????????????????????????????????????????????? | | ?????????????????????????????????????????????????? | | ?????????????????????????????????????????????????? | | ?????????????????????????????????????????????????? | | ?????????????????????????????????????????????????? | | ?????????????????????????????????????????????????? | | ??????????????????????#####??????????????????????? | | ???????????????????????= ??????????????????????? | | ??????????????????????? ??????????????????????? | | ???????????????Y??????? Y ???###########????????? | | ???????????????????????? ???# !! #????????? | | ???????????????????????? ???# *[!== #????????? | | ????????????????????????# #???# [[/!! ##+### ??? | | ????????????????????????# #?###![=c=m /H | | ?????????????????????#### ## =/]*u ## #?????? | | ?????????????????????+^ *=! #????????? | | ??????????????? ?????# *% #??#?????? | | ??????????????? ?????# @ ## = == #? ######? | | ??????????????? ?????+ "T" T## % [ ### | | ??????????????? ?????# """ ### %= | | ??????????????? ?????# ##### | | ??????????????? ?????+ | | ??????????????? ?????############# | | ??????????????# #???????# # | | ??????????????# #???##### # ############? | | ??????????????# #???# # # # #?? | | ??????????????# #???# # # # S #?? | | ??????????????# #???#/ # # % # "" """ #?? | | ??????????????# #???# !# #% #="" """ #?? | | ??????????????#!#???# # # /% "" #?? | | ????????#######"#####! # # *#* """ #? | | ????????# ==== ## #? ??# # ##? | | ?######### "S [[==####+####+##### # #?? | | ?# ## """ ![[ # w ###########?? | | ?# ## "" [ / ^% #???????????? | | ?# ## && # " " #???????????? | | ?# ## ! ######## " #???????????? | | ?# ## #??????#^ ############# | | ?# ## / !#??????# | | #####+##################### ############## | | ^ % *** #????????????? | | ** #????????????? | +----------------------------------------------------+ Best States ------------- Heat Dissipation 31 Energy Generation 16 Energy Capacity 290 Matter Stores 300 Matter Capacity 300 Sight Range 16 Terrain Scan Density 10 ECM Strength 1 Cloak Strength 5 Armor Coverage 750 Resistance: KI 20 Phase Shifting 5 Evasion (%) 45 Targeting Accuracy 5 Armor Integrity Analysis 30 Recoil Reduction 4 Item Schematics ----------------- Hacking Suite | -8/Materials | Scanalyzed System Shield | -8/Materials | Scanalyzed Propulsion Shielding | -8/Materials | Scanalyzed Robot Schematics ------------------ None Fabricated ------------ Nothing Repaired ---------- Nothing Studied --------- None Alien Tech Used ----------------- None Achievements -------------- I Survived The Infestation Live, Flee, And Rebuild Oops Challenges ------------ None Game ------ Seed BombLatentActivator Manual? 0 Play Time 00:46:59 Cumulative 3.2 hours Start 2026.01.03 @ 17:07:43 End 2026.01.03 @ 17:53:20 Sessions 1 Manual Loads 0 Difficulty Rogue Special Mode None Game No. 5 Rogue 5 Adventurer 0 Explorer 0 Win Type - Total 0 Types 0/0/0/0/0/0/0/0/0/0 Lore% 2 Gallery% 8 Achievement% 9 Wizard Run 0 Options --------- Layout 1 ASCII 0 Keyboard 1 Movement Vi Keybinds 0 Fullscreen 1 Font 24/Smallcaps Map View 50x35 Zoom Use 0% Tactical HUD 0 Map Filters NONE Filters NONE Steam 1 RUN: fb3745d2-6046-47ce-b98e-bfceef6fe714